Cogmind - Beta 16.1 @@@ ROGUE MODE // 2026.03.14 @ 21:14:16 Player: StaticNoob Result: Destroyed by SA-UQD(R) with Subdweller Laser Performance ------------- Evolutions (0) 0 Regions Visited (2) 400 Robots Destroyed (10) 50 Value Destroyed (244) 244 Prototype IDs (0) 0 Alien Tech Used (0) 0 Bonus (0) 0 TOTAL SCORE: 694 Bonus ------- None Cogmind --------- Core Integrity 0/250 Matter 251/300 Energy 176/200 System Corruption 0% Temperature Cool (6) Movement Core (400) Ox7 Location -10/Subcaves Parts ------- > --- POWER (1) -------- Subdweller Power Source > --- PROPULSION (2) --- (None) > --- UTILITY (2) ------ Medium Storage Unit Core Shielding > --- WEAPON (2) ------- Beam Cannon Subdweller Machine Gun > --- INVENTORY (10) --- Ion Engine Light Ion Engine Heat Sink Large Battery (200) Seismic Detector Improved Targeting Computer Plasma Cutter Peak State ------------ > --- POWER ------------ Subdweller Power Source > --- PROPULSION ------- Light Treads > --- UTILITY ---------- Medium Storage Unit Core Shielding > --- WEAPON ----------- Beam Cannon Subdweller Machine Gun > --- INVENTORY -------- Ion Engine Light Ion Engine Heat Sink Large Battery Seismic Detector Improved Targeting Computer Beam Cannon Plasma Cutter [Rating: 9] Favorites ----------- Power Ion Engine Engine Ion Engine Propulsion Light Treads Treads Light Treads Utility Medium Storage Unit Device Seismic Detector Storage Medium Storage Unit Protection Core Shielding Weapon Light Assault Rifle Energy Cannon Beam Cannon Ballistic Gun Light Assault Rifle Build | -11 -10 -10 ------- Run | Yrd Mat Sub Slots Evolved . | . . . Power . | . . . Propulsion . | . . . Utility . | . . . Weapon . | . . . Parts Attached 13 | 6 4 3 Power 2 | 1 . 1 Engine 2 | 1 . 1 Core . | . . . Reactor . | . . . Propulsion 2 | 2 . . Treads 2 | 2 . . Leg . | . . . Wheel . | . . . Hover . | . . . Flight . | . . . Utility 4 | 2 2 . Device 1 | 1 . . Storage 2 | 1 1 . Processor . | . . . Hackware . | . . . Protection 1 | . 1 . Artifact . | . . . Weapon 5 | 1 2 2 Energy Gun . | . . . Energy Cannon 2 | . 1 1 Ballistic Gun 3 | 1 1 1 Ballistic Cannon . | . . . Launcher . | . . . Special Weapon . | . . . Impact Weapon . | . . . Slashing Weapon . | . . . Piercing Weapon . | . . . Special Melee Weapon . | . . . Unidentified Prototypes . | . . . Parts Lost 6 | . 1 5 Power 1 | . . 1 Propulsion 2 | . . 2 Utility . | . . . Weapon 3 | . 1 2 Highest Loss Streak 3 | . 1 3 To Critical Strikes . | . . . Average Backups 6 | . 6 7 Power 1 | . 1 2 Propulsion . | . . . Utility 3 | . 3 4 Weapon . | . . . Tool/Special . | . . . Unused Backups 6 | . . 6 Power 2 | . . 2 Propulsion . | . . . Utility 3 | . . 3 Weapon . | . . . Tool/Special 1 | . . 1 Average Slot Usage (%) 90 | . 92 86 Engine 13 | . 14 13 Treads 23 | . 28 15 Device 9 | . 13 . Storage 14 | . 14 14 Protection 4 | . . 14 Energy Cannon 9 | . 7 14 Ballistic Gun 13 | . 14 13 Peak Build Rating 9 | 6 8 9 Average Rating 7 | 4 7 8 On Entrance 4 | . 6 8 Avg Prop Armor Cover (%) . | . . . Naked Turns . | . . . Heaviest Build 23 | 12 20 23 Greatest Support 40 | 40 40 40 Greatest Overweight (x) 7 | . . 7 Average Overweight (x) . | . . . Largest Inventory Capacity 10 | 8 10 10 Average Capacity 9 | 7 9 10 Most Carried 9 | 1 9 8 Average Carried 6 | . 6 7 Final Capacity 10 | 8 10 10 Final Carried 8 | 1 8 7 Class Distribution -------------------- 100% | Mutant Dominant Class ---------------- Mutant | -10/Materials Mutant | -10/Subcaves Resources | -11 -10 -10 ----------- Run | Yrd Mat Sub Matter Collected 321 | 184 73 64 Remotely . | . . . Salvage Created 305 | 71 140 94 Parts 21 | 5 10 6 Haulers Intercepted . | . . . Recyclers Shooed . | . . . Parts Field Recycled . | . . . Retrieved Matter . | . . . Parts Self-Destructed 7 | . . 7 Prevented . | . . . Parts Restored . | . . . Kills | -11 -10 -10 ------- Run | Yrd Mat Sub Combat Hostiles Destroyed 8 | . 5 3 Guns 5 | . 5 . Cannons 3 | . . 3 Classes Destroyed 5 | 2 2 1 Tunneler 1 | 1 . . Recycler 1 | 1 . . Swarmer 3 | . 3 . Grunt 2 | . 2 . Subdweller 3 | . . 3 Best Kill Streak 2 | 2 2 2 Combat Bots Only 2 | . 2 2 Max Kills in Single Turn 1 | 1 1 1 Gunslinging . | . . . Exploded . | . . . Melee . | . . . Uniques/NPCs Destroyed . | . . . Combat | -11 -10 -10 -------- Run | Yrd Mat Sub Hostile Shots Fired 82 | . 42 40 Missed 19 | . 14 5 Hits 63 | . 28 35 Projectile 63 | . 28 35 Critical Strikes 5 | . 2 3 Actively Blocked 2 | . . 2 Damage Taken 1152 | . 298 854 Core 254 | . 34 220 Absorbed by Shields . | . . . Redirected to Shielding 46 | . . 46 Core Remaining (%) 100 | 100 . . Volleys Fired 58 | 9 30 19 Largest 2 | 1 2 2 Hottest 120 | 20 40 120 Shots Fired 75 | 9 33 33 Gun 54 | 9 33 12 Cannon 21 | . . 21 Launcher . | . . . Special . | . . . Kinetic 54 | 9 33 12 Thermal 21 | . . 21 Explosive . | . . . Electromagnetic . | . . . Robot Hit Streak 13 | 5 13 11 Robot Miss Streak 8 | 1 8 1 Penetration Max . | . . . Secondary Targets . | . . . Shots Hit Robots 57 | 8 21 28 Core Hits 21 | 4 11 6 Critical Kills . | . . . Critical Parts Destroyed 1 | . 1 . Critical Strikes 1 | . 1 . Destroy 1 | . 1 . Melee Attacks . | . . . Impact . | . . . Slashing . | . . . Piercing . | . . . Sneak Attacks . | . . . Combat Hostiles . | . . . Follow-up Attacks . | . . . Damage Inflicted 714 | 63 169 482 Guns 381 | 63 169 149 Cannons 333 | . . 333 Explosions . | . . . Melee . | . . . Ramming . | . . . Kinetic 381 | 63 169 149 Thermal 333 | . . 333 Explosive . | . . . Electromagnetic . | . . . Impact . | . . . Slashing . | . . . Piercing . | . . . Highest Corruption . | . . . Average Corruption . | . . . Corruption Purged . | . . . Corruption Blocked . | . . . Overload Shots . | . . . Overflow Damage . | . . . Projectiles . | . . . Explosions . | . . . Melee . | . . . Knockbacks . | . . . Impact . | . . . Kinetic . | . . . Secondary . | . . . Self-Inflicted Damage . | . . . Shots . | . . . Rammed . | . . . Targets Rammed . | . . . Kicked . | . . . Crushed . | . . . Highest Temperature 254 | . 27 254 Average Temperature 83 | . 12 108 Received Heat Transfer 583 | . 102 481 Siege Activations . | . . . Martial Activations . | . . . Shielding Activations . | . . . Robots Disrupted . | . . . Combat Hostiles . | . . . Robots Corrupted . | . . . Combat Hostiles . | . . . Parts Fried . | . . . Impact Corruptions . | . . . Robots Melted . | . . . Combat Hostiles . | . . . Parts Melted 1 | . . 1 Heat Transferred 703 | . . 703 Parts Sabotaged . | . . . Parts Stolen . | . . . Parts Stripped . | . . . Power Chain Reactions . | . . . Alert | -11 -10 -10 ------- Run | Yrd Mat Sub Maximum Alert Level . | . . . Low Security (%) 100 | 100 100 . Level 1 . | . . . Level 2 . | . . . Level 3 . | . . . Level 4 . | . . . Level 5 . | . . . High Security . | . . . Max Security . | . . . Peak Influence 54 | 10 54 . Initial . | . . . Average 7 | 1 8 . Influence Increases 148 | 10 138 . Destroy 0b10 Robot/C 100 | . 100 . Destroy 0b10 Robot/NC 10 | 10 . . Destroy Leader 20 | . 20 . Successful Hack 18 | . 18 . Influence Decreases 148 | 10 138 . Time Decay 138 | 10 128 . Lost Part 10 | . 10 . Squads Dispatched . | . . . Investigation . | . . . Extermination . | . . . Reinforcement . | . . . Assault . | . . . Garrison . | . . . Intercept . | . . . Searches Triggered . | . . . Construction Impeded . | . . . Haulers Reinforced . | . . . Active Scanning Responses . | . . . Cargo Convoy Interrupts . | . . . Stealth | -11 -10 -10 --------- Run | Yrd Mat Sub Distress Signals . | . . . Communications Jammed . | . . . Distress Signals . | . . . Times Spotted 11 | . 7 4 Peak Tracking Total 2 | . 2 2 Tactical Retreats . | . . . Traps | -11 -10 -10 ------- Run | Yrd Mat Sub Traps Triggered . | . . . Indirectly . | . . . Trap Hack Attempts . | . . . Triggered . | . . . Disarmed . | . . . Reprogrammed . | . . . Reused . | . . . Traps Extracted . | . . . Installed . | . . . Triggered . | . . . Machines | -11 -10 -10 ---------- Run | Yrd Mat Sub Machines Disabled . | . . . Max in Single Turn . | . . . Machines Repaired . | . . . Machines Dismantled . | . . . Machines Sabotaged . | . . . Overloaded Fab Kills . | . . . Hacking | -11 -10 -10 --------- Run | Yrd Mat Sub Machines Accessed 6 | . 6 . Terminals 5 | . 5 . Fabricators . | . . . Repair Stations . | . . . Recycling Units 1 | . 1 . Scanalyzers . | . . . Garrison Access . | . . . Total Hacks 12 | . 12 . Successful 8 | . 8 . Failed 4 | . 4 . Catastrophic . | . . . Database Lockouts . | . . . Manual 10 | . 10 . Terminals 11 | . 11 . Fabricators . | . . . Repair Stations . | . . . Recycling Units 1 | . 1 . Scanalyzers . | . . . Garrison Access . | . . . Terminal Hacks 2 | . 2 . Robot Analysis 1 | . 1 . Locate Traps 1 | . 1 . Fabricator Hacks . | . . . Repair Station Hacks . | . . . Recycling Unit Hacks 1 | . 1 . Retrieve Components 1 | . 1 . Scanalyzer . | . . . Garrison Access Hacks . | . . . Unauthorized Hacks 5 | . 5 . Terminals 5 | . 5 . Skim 5 | . 5 . Fabricators . | . . . Repair Stations . | . . . Recycling Units . | . . . Scanalyzers . | . . . Garrison Access . | . . . Data Cores Recovered . | . . . Used . | . . . Hacking Detections 6 | . 6 . Full Trace Events . | . . . Feedback Events . | . . . Feedback Blocked . | . . . Robot Schematics Acquired . | . . . Robots Built . | . . . Authchips . | . . . Time . | . . . Total Robot Build Rating . | . . . Part Schematics Acquired . | . . . Parts Built . | . . . Authchips . | . . . Time . | . . . Total Part Build Rating . | . . . Part Studies Acquired . | . . . Parts Repaired . | . . . Time . | . . . Parts Recycled . | . . . Recycled Matter . | . . . Retrieved Matter . | . . . Retrieved Components 2 | . 2 . Parts Scanalyzed . | . . . Part Schematics Acquired . | . . . Parts Damaged . | . . . Bothacking | -11 -10 -10 ------------ Run | Yrd Mat Sub Used RIF Installer . | . . . Robots Hacked . | . . . Non-combat . | . . . Combat . | . . . Robot Hacks Applied . | . . . Relay Couplers Released . | . . . Fabnet Peak Effective % . | . . . Robots Rewired . | . . . Allies Hacked . | . . . Hacks Repelled . | . . . Allies | -11 -10 -10 -------- Run | Yrd Mat Sub Total Allies . | . . . Largest Group . | . . . Highest-Rated Group . | . . . Highest-Rated Ally . | . . . Total Orders . | . . . Ally Attacks . | . . . Total Damage . | . . . Kills . | . . . Allies Corrupted . | . . . Allies Melted . | . . . Intel | -11 -10 -10 ------- Run | Yrd Mat Sub Active Infowar (turns) 844 | 6 838 . Seismic 844 | 6 838 . Robot Analysis Total 1 | . 1 . Derelict Logs Recovered 1 | . . 1 Drone Launches . | . . . Drone Recoveries . | . . . Exploration | -11 -10 -10 ------------- Run | Yrd Mat Sub Turns Passed 1369 | 90 840 439 Spaces Moved 446 | 44 230 172 Core 6 | 5 . 1 Treads 440 | 39 230 171 Legs . | . . . Wheels . | . . . Hover . | . . . Flight . | . . . Fastest Speed 50 | 50 160 160 Average Speed 182 | 147 160 220 Slowest Speed 400 | 160 160 400 Overloaded Moves . | . . . Propulsion Burnouts . | . . . Robots Hopped . | . . . Potential Cave-ins . | . . . Cave-ins Triggered . | . . . Exploration Rate (%) 20 | 4 43 14 Regions Visited 2 Branch Regions 1 Pre-discovered Areas 2 | . . 2 Known Exits Taken 1 | . 1 . Unknown Exits Taken 1 | 1 . . Scrap Searched . | . . . Spaces Dug . | . . . Terrain Destroyed . | . . . Melee . | . . . Projectile . | . . . AOE . | . . . Terrain Rammed . | . . . Walls Destroyed . | . . . Machines Disabled . | . . . Actions | -11 -10 -10 --------- Run | Yrd Mat Sub Total 933 | 59 675 199 Wait 405 | . 402 3 Move 444 | 43 229 172 Hop . | . . . Pick Up 10 | 1 9 . Fast Attach 8 | 6 . 2 Attach 4 | . 2 2 Detach 1 | . . 1 Swap 2 | . 2 . Drop 1 | . 1 . Fire 58 | 9 30 19 Melee . | . . . Ram . | . . . Kick . | . . . Crush . | . . . Escape Stasis . | . . . Rewire . | . . . Trap . | . . . Miscellaneous . | . . . Route ------- -11/Scrapyard -10/Materials (discovered 5 exits: *Mat x3 / Min / *Sub) -10/Subcaves (discovered 2 exits: *Mat x2) History --------- Turn | Location | Event 10 | -11/Scrapyard | Discovered new exit (range 14) 91 | -11/Scrapyard | Entered Materials 316 | -10/Materials | Build established: Mutant 507 | -10/Materials | Discovered new exit (range 16) 580 | -10/Materials | Identified exit to Mines 583 | -10/Materials | Discovered new exit (range 5) 648 | -10/Materials | Loaded intel: 14 trap records 755 | -10/Materials | Learned location of 2 exits from Mines 794 | -10/Materials | Identified exit to Materials 794 | -10/Materials | Identified exit to Subcaves 821 | -10/Materials | Learned Storage stockpile data 857 | -10/Materials | Learned Storage stockpile data 905 | -10/Materials | Learned location of 2 exits from Subcaves 931 | -10/Materials | Entered Subcaves 932 | -10/Subcaves | Identified exit to Materials 941 | -10/Subcaves | Learned location of Zion (-7) 1055 | -10/Subcaves | Lost 3 parts (1p1n1w) 1303 | -10/Subcaves | Met a Zionite searching for "candidates" 1357 | -10/Subcaves | Core integrity fell below 50% 1366 | -10/Subcaves | Core integrity fell below 20% 1370 | -10/Subcaves | Destroyed by SA-UQD(R) with Subdweller Laser Last Messages --------------- Gun. 01026_ Critical hit (Meltdown: +250). 01028_ Sub. Optics melted. 01028_ ZO-1WF(R) destroyed. 01034_ Acquired Sub. Machine Gun. 01037_ Acquired Sub. Power Source. 01041_ Acquired 30 matter. 01043_ Acquired 34 matter. 01114_ SB-JH4(z): "She is not going to be happy we haven't found any suitable candidates yet." 01303_ SB-JH4(z): "Hey you! It's really dangerous down here, I feel that you could die at any moment. For your health and safety might I suggest a trip to Zion?" World map confirmed: -7/Zion. 01343_ Lgt. Treads destroyed. 01360_ Beam Cannon destroyed. 01364_ Sub. Machine Gun shoots sparks and powers down. 01367_ K3-Z5C(R) destroyed. Map ----- +----------------------------------------------------+ | ?????????????????????????????????????????????????? | | ?????????????????????????????????????????????????? | | ?????????????????????????????????????????????????? | | ?????????????????????????????????????????????????? | | ?????????????????????????????????????????????????? | | ?????????????????????????????????????????????????? | | ?????????????????????????????????????????????????? | | ?????????????????????????????????????????????????? | | ?????????????????????????????????????????????????? | | ?????????????????????????????????????????????????? | | ?????????????????????????????????????????????????? | | ?????????????????????????????????????????????????? | | ?????????????????????????????????????????????????? | | ?????????????????????????????????????????????????? | | ?????????????????????????????????????????????????? | | ?????????????????????????????????????????????????? | | ###??????????????????????##??????????????????????? | | # #?????????????????????? ##?????????????????????? | | # ##????????????????????? ?????????????????????? | | # #???????#####???????## ??????????????????????? | | # #???##### ##?????## ??????????????????????? | | # ##??# ## < ##????# ????#####??????????????? | | # #### ## ##???# ????# ##?????????????? | | ## ## ###?# !#???## ##????????????? | | ?# ###R%##### ###??????????? | | ?# ## ## ## @# #??????????? | | ?# ##### ######## ###?????????? | | ?# ##???#### ##????# #?????????? | | ?# ##??????## #????## ### #?????????? | | ?###??????## #?????###?# #?????????? | | ??????????# ##????###### #?????????? | | ??????????# #?????# ## ## ## #???? | | ?????????## #?????# ## ## ##??? #???? | | ?######??# ##?????# ## #?????? #???? | | ## ##?# ##?????## ## #??????????????? | | # #?# #?####?# #### ###?????????????? | | # ### #### ### # ???? | | ?# ## #?# #????? | | ??# ### #????? | | ??# ## ## ## ## #????? | | ??# ### ### ### #?? #????? | | ??# ## ### ##?## #?? ?? ####????? | | ?# ### ## #???### ?? #???????? | | # ## #?????# ? #??????? | | ## #### ##?????#### # ####?##??????? | | ?###??# ##### #?????????#########????????????? | | ??????##&&#???# #?????????????????????????????? | | ??????## ##??# #????????????????????????????? | | ??????#&& #??# #????????????????????????????? | | ??????## #??#######????????????????????????????? | +----------------------------------------------------+ Best States ------------- Heat Dissipation 25 Energy Generation 10 Energy Capacity 250 Matter Stores 266 Matter Capacity 300 Sight Range 16 Terrain Scan Density 10 Core Shielding 20 Evasion (%) 40 Recoil Reduction 2 Item Schematics ----------------- None Robot Schematics ------------------ None Fabricated ------------ Nothing Repaired ---------- Nothing Studied --------- None Alien Tech Used ----------------- None Achievements -------------- None Challenges ------------ None Game ------ Seed DamperMissilePlating Manual? 0 Play Time 00:06:01 Cumulative 302.6 hours Start 2026.03.14 @ 21:09:33 End 2026.03.14 @ 21:14:16 Sessions 1 Manual Loads 0 Difficulty Rogue Special Mode None Game No. 233 Rogue 233 Adventurer 0 Explorer 0 Win Type - Total 12 Types 8/0/3/1/0/0/0/0/0/0 Lore% 86 Gallery% 72 Achievement% 61 Wizard Run 0 Options --------- Layout 1 ASCII 0 Keyboard 0 Movement Numpad Keybinds 0 Fullscreen 1 Font 24/Smallcaps Map View 50x35 Zoom Use 0% Tactical HUD 1 Map Filters NONE Filters NONE Steam 1 RUN: 7d1d1e13-9b3a-41be-8281-dc8180f1622e